Cogmind - Beta 13 *** ADVENTURER MODE // 2024.08.01 @ 15:52:09 Player: Jefffff Result: Smashed by cave-in Performance ------------- Evolutions (2) 1000 Regions Visited (5) 1000 Robots Destroyed (95) 475 Value Destroyed (2766) 2766 Prototype IDs (3) 60 Alien Tech Used (0) 0 Bonus (301) 301 TOTAL SCORE: 5602 Bonus ------- High Alert Combat Kills 55 Follower Combat Kills 190 Entered Garrisons 200 Friendly Fire -144 Cogmind --------- Core Integrity 0/550 Matter 280/300 Energy 183/275 System Corruption 8% Temperature Cool (0) Movement Rolling (120) Ox2 Location -8/Garrison Parts ------- > --- POWER (1) -------- Deuterium Engine > --- PROPULSION (3) --- Armored Wheel Armored Wheel > --- UTILITY (5) ------ Cooling System High-capacity Storage Unit Reflective Plating > --- WEAPON (2) ------- Heavy Particle Cannon Impact Mace > --- INVENTORY (20) --- Deuterium Engine Deuterium Engine Large Battery (200) Advanced Weight Redist. System Machine Analyzer Improved Sensor Array Core Shielding Improved Light Armor Plating Reflective Plating Hardlight Generator Hacking Suite Hacking Suite Hacking Suite Minigun Assault Cannon Improved Grenade Launcher Improved Grenade Launcher Plasma Cutter Impact Mace Peak State ------------ > --- POWER ------------ Deuterium Engine > --- PROPULSION ------- Aluminum Leg Carbon-fiber Leg VSS Leg > --- UTILITY ---------- Cooling System High-capacity Storage Unit Improved Sensor Array Improved Signal Interpreter Reflective Plating > --- WEAPON ----------- Heavy Particle Cannon Impact Mace > --- INVENTORY -------- Deuterium Engine Deuterium Engine Deuterium Engine Light Deuterium Engine Improved Heat Sink Large Battery Improved Sensor Array Seismic Detector Core Shielding Core Shielding Core Shielding Reflective Plating Reflective Plating Hacking Suite Field Laser Assault Cannon Improved Grenade Launcher Improved Grenade Launcher Plasma Cutter Impact Mace [Rating: 35] Favorites ----------- Power Deuterium Engine Engine Deuterium Engine Propulsion Armored Wheel Leg Aluminum Leg Wheel Armored Wheel Utility High-capacity Storage Unit Device Cooling System Storage High-capacity Storage Unit Processor Improved Signal Interpreter Protection Reflective Plating Weapon Maul Energy Gun Spread Laser Energy Cannon Heavy Particle Cannon Ballistic Gun Light Assault Rifle Ballistic Cannon Light Cannon Launcher Grenade Launcher Impact Weapon Maul Build | -11 -10 -10 -9 -8 -8 ------- Run | Yrd Mat Min Mat Mat Gar Slots Evolved 4 | . . . 2 2 . Power . | . . . . . . Propulsion 1 | . . . . 1 . Utility 3 | . . . 2 1 . Weapon . | . . . . . . Parts Attached 72 | . 21 . 10 39 2 Power 9 | . 1 . 3 4 1 Engine 9 | . 1 . 3 4 1 Core . | . . . . . . Reactor . | . . . . . . Propulsion 27 | . 10 . 4 12 1 Treads . | . . . . . . Leg 8 | . 4 . . 4 . Wheel 19 | . 6 . 4 8 1 Hover . | . . . . . . Flight . | . . . . . . Utility 16 | . 3 . 2 11 . Device 9 | . 2 . 1 6 . Storage 1 | . 1 . . . . Processor 3 | . . . 1 2 . Hackware . | . . . . . . Protection 3 | . . . . 3 . Artifact . | . . . . . . Weapon 20 | . 7 . 1 12 . Energy Gun 7 | . 3 . 1 3 . Energy Cannon 4 | . . . . 4 . Ballistic Gun . | . . . . . . Ballistic Cannon 1 | . . . . 1 . Launcher 4 | . 3 . . 1 . Special Weapon . | . . . . . . Impact Weapon 4 | . 1 . . 3 . Slashing Weapon . | . . . . . . Piercing Weapon . | . . . . . . Special Melee Weapon . | . . . . . . Unidentified Prototypes 3 | . . . . 3 . Parts Lost 12 | . 1 . . 7 4 Power 2 | . 1 . . 1 . Propulsion 5 | . . . . 3 2 Utility 4 | . . . . 2 2 Weapon 1 | . . . . 1 . Highest Loss Streak 4 | . 1 . . 4 4 To Critical Strikes 1 | . . . . 1 . Average Slot Usage (%) 95 | . 97 100 92 94 93 Engine 10 | . 13 14 11 8 8 Leg 8 | . 19 . . 5 . Wheel 15 | . 8 28 22 16 24 Device 17 | . 12 14 18 19 16 Storage 10 | . 14 14 11 9 9 Processor 5 | . . . 7 7 7 Protection 5 | . . . . 8 9 Energy Gun 6 | . 14 14 11 2 . Energy Cannon 4 | . . . . 7 9 Impact Weapon 9 | . 10 14 11 7 9 Naked Turns . | . . . . . . Heaviest Build 68 | 11 53 53 59 68 65 Greatest Support 37 | 20 32 32 32 37 36 Greatest Overweight (x) 6 | . 2 1 2 6 5 Average Overweight (x) 1 | . 1 1 1 1 1 Largest Inventory Capacity 20 | 8 20 20 20 20 20 Average Capacity 19 | 8 16 20 20 20 20 Most Carried 20 | 6 20 20 20 20 20 Average Carried 18 | 6 15 20 19 19 19 Final Capacity 20 | 8 20 20 20 20 20 Final Carried 20 | 6 20 20 20 20 19 Class Distribution -------------------- 90% | Mutant 9% | Assassin Dominant Class ---------------- Mutant | -10/Materials Mutant | -10/Mines Mutant | -9/Materials Mutant | -8/Materials Mutant | -8/Garrison Resources | -11 -10 -10 -9 -8 -8 ----------- Run | Yrd Mat Min Mat Mat Gar Matter Collected 1043 | 200 325 . 70 423 25 Remotely . | . . . . . . Salvage Created 3080 | . 522 . 235 2053 270 Parts 171 | . 46 . 20 95 10 Haulers Intercepted 7 | . 2 . 1 4 . Recyclers Shooed 5 | . 2 . . 3 . Parts Field Recycled . | . . . . . . Retrieved Matter . | . . . . . . Parts Self-Destructed . | . . . . . . Prevented . | . . . . . . Kills | -11 -10 -10 -9 -8 -8 ------- Run | Yrd Mat Min Mat Mat Gar Combat Hostiles Destroyed 58 | . 13 . 6 30 9 Melee 14 | . 2 . . 7 5 Guns 14 | . 6 . 6 2 . Cannons 12 | . . . . 11 1 AOE 4 | . 4 . . . . Classes Destroyed 14 | . 7 . 2 4 1 Worker 7 | . 3 . . 4 . Builder 5 | . 2 . . 3 . Hauler 7 | . 2 . 1 4 . Recycler 3 | . 1 . . 2 . Mechanic 1 | . . . . 1 . Operator 3 | . . . 1 2 . Watcher 10 | . 3 . 1 5 1 Swarmer 10 | . 2 . 5 . 3 Cutter 2 | . . . . . 2 Grunt 32 | . 11 . 1 16 4 Brawler 1 | . . . . 1 . Duelist 2 | . . . . 2 . Sentry 11 | . . . 1 10 . Hunter 1 | . . . . 1 . Best Kill Streak 7 | . 6 . 4 7 4 Combat Bots Only 6 | . 4 . 3 6 4 Max Kills in Single Turn 3 | . 3 . 1 1 1 Gunslinging . | . . . . . . Exploded 2 | . 2 . . . . Melee 1 | . 1 . . 1 1 Uniques/NPCs Destroyed . | . . . . . . Combat | -11 -10 -10 -9 -8 -8 -------- Run | Yrd Mat Min Mat Mat Gar Hostile Shots Fired 353 | . 77 . 37 183 56 Missed 111 | . 22 . 11 57 21 Damage Taken 2969 | . 457 . 222 1522 768 Core 766 | . 105 . 71 401 189 Absorbed by Shields . | . . . . . . Ignored by Resistances 832 | . 145 . 66 506 115 Regen/Repaired (Parts) 254 | . . . . 254 . Core Remaining (%) 80 | 100 . 58 82 . . Volleys Fired 179 | . 28 . 29 122 . Largest 2 | . 2 . 1 2 . Hottest 125 | . 65 . 65 125 . Shots Fired 205 | . 34 . 29 142 . Gun 78 | . 22 . 29 27 . Cannon 115 | . . . . 115 . Launcher 12 | . 12 . . . . Special . | . . . . . . Kinetic . | . . . . . . Thermal 193 | . 22 . 29 142 . Explosive 12 | . 12 . . . . Electromagnetic . | . . . . . . Robot Hit Streak 31 | . 12 . 10 31 . Robot Miss Streak 10 | . 7 . 10 2 . Penetration Max . | . . . . . . Secondary Targets . | . . . . . . Shots Hit Robots 238 | . 39 . 25 159 15 Core Hits 126 | . 52 . 24 45 5 Critical Kills 3 | . 1 . . 1 1 Critical Parts Destroyed 23 | . 3 . . 13 7 Critical Strikes 28 | . 4 . . 16 8 Burn 1 | . . . . 1 . Smash 27 | . 4 . . 15 8 Melee Attacks 154 | . 16 . . 54 84 Impact 154 | . 16 . . 54 84 Slashing . | . . . . . . Piercing . | . . . . . . Sneak Attacks 7 | . 2 . . 4 1 Combat Hostiles 1 | . . . . 1 . Follow-up Attacks . | . . . . . . Damage Inflicted 7097 | . 1477 . 395 4370 855 Guns 1012 | . 277 . 395 340 . Cannons 1956 | . . . . 1956 . Explosions 667 | . 667 . . . . Melee 3462 | . 533 . . 2074 855 Ramming . | . . . . . . Kinetic . | . . . . . . Thermal 2968 | . 277 . 395 2296 . Explosive 667 | . 667 . . . . Electromagnetic . | . . . . . . Impact 3462 | . 533 . . 2074 855 Slashing . | . . . . . . Piercing . | . . . . . . Highest Corruption 8 | . . . . 1 8 Average Corruption 1 | . . . . 1 2 Corruption Purged . | . . . . . . Corruption Blocked . | . . . . . . Effects 19 | . . . . 13 6 Message Errors 3 | . . . . 2 1 Matter Fused 5 | . . . . 4 1 Energy Discharges 3 | . . . . 2 1 Data Loss (minor) 2 | . . . . 1 1 Data Loss (major) 1 | . . . . . 1 Misfires 3 | . . . . 3 . Alerts 2 | . . . . 1 1 Overload Shots . | . . . . . . Overflow Damage 1358 | . 184 . . 731 443 Projectiles 14 | . . . . 14 . Explosions 30 | . 30 . . . . Melee 1314 | . 154 . . 717 443 Knockbacks 14 | . 2 . . 7 5 Impact 13 | . 2 . . 7 4 Kinetic . | . . . . . . Secondary 1 | . . . . . 1 Self-Inflicted Damage 11 | . 11 . . . . Shots 1 | . 1 . . . . Rammed . | . . . . . . Targets Rammed . | . . . . . . Kicked . | . . . . . . Crushed . | . . . . . . Highest Temperature 285 | . 285 . . 70 . Average Temperature 56 | . 97 . . 12 . Received Heat Transfer 1317 | . 309 . 45 864 99 Siege Activations . | . . . . . . Robots Corrupted . | . . . . . . Combat Hostiles . | . . . . . . Parts Fried 23 | . 1 . . 19 3 Impact Corruptions 47 | . 5 . . 28 14 Robots Melted 1 | . . . . 1 . Combat Hostiles 1 | . . . . 1 . Parts Melted 11 | . . . 2 9 . Heat Transferred 4994 | . 340 . 695 3959 . Parts Sabotaged . | . . . . . . Parts Stolen . | . . . . . . Parts Stripped . | . . . . . . Power Chain Reactions . | . . . . . . Alert | -11 -10 -10 -9 -8 -8 ------- Run | Yrd Mat Min Mat Mat Gar Peak Influence 519 | . 189 . 420 519 342 Initial 90 | . . . . 90 27 Average 149 | . 62 . 262 181 167 Maximum Alert Level 2 | . . . 2 2 1 Low Security (%) 67 | 100 100 100 22 58 48 Level 1 26 | . . . 54 32 51 Level 2 6 | . . . 23 8 . Level 3 . | . . . . . . Level 4 . | . . . . . . Level 5 . | . . . . . . High Security . | . . . . . . Max Security . | . . . . . . Squads Dispatched 9 | . 2 . 4 3 . Investigation 4 | . 2 . 2 . . Extermination . | . . . . . . Reinforcement 4 | . . . 2 2 . Assault . | . . . . . . Garrison 1 | . . . . 1 . Intercept . | . . . . . . Searches Triggered . | . . . . . . Construction Impeded . | . . . . . . Haulers Reinforced . | . . . . . . Active Scanning Responses . | . . . . . . Cargo Convoy Interrupts . | . . . . . . Stealth | -11 -10 -10 -9 -8 -8 --------- Run | Yrd Mat Min Mat Mat Gar Distress Signals 8 | . 3 . 4 1 . Communications Jammed . | . . . . . . Distress Signals . | . . . . . . Times Spotted 95 | . 19 . 19 43 14 Peak Tracking Total 8 | . 6 . 5 8 5 Tactical Retreats 7 | . 1 . . 4 2 Traps | -11 -10 -10 -9 -8 -8 ------- Run | Yrd Mat Min Mat Mat Gar Traps Triggered 12 | . 2 . 1 4 5 Indirectly . | . . . . . . Trap Hack Attempts . | . . . . . . Triggered . | . . . . . . Disarmed . | . . . . . . Reprogrammed . | . . . . . . Reused . | . . . . . . Traps Extracted . | . . . . . . Installed . | . . . . . . Triggered 2 | . . . . 2 . Machines | -11 -10 -10 -9 -8 -8 ---------- Run | Yrd Mat Min Mat Mat Gar Machines Disabled 9 | . 2 . 2 4 1 Max in Single Turn 1 | . 1 . 1 1 1 Garrison Relay 1 | . . . . . 1 Machines Repaired . | . . . . . . Machines Dismantled . | . . . . . . Machines Sabotaged . | . . . . . . Overloaded Fab Kills . | . . . . . . Hacking | -11 -10 -10 -9 -8 -8 --------- Run | Yrd Mat Min Mat Mat Gar Machines Accessed 22 | . 6 . 4 10 2 Terminals 17 | . 6 . 3 6 2 Fabricators . | . . . . . . Repair Stations 2 | . . . . 2 . Recycling Units 1 | . . . 1 . . Scanalyzers 1 | . . . . 1 . Garrison Access 1 | . . . . 1 . Total Hacks 64 | . 24 . 8 28 4 Successful 43 | . 15 . 5 22 1 Failed 21 | . 9 . 3 6 3 Catastrophic 2 | . . . 1 . 1 Database Lockouts . | . . . . . . Manual 44 | . 23 . 8 13 . Terminals 49 | . 24 . 7 14 4 Fabricators . | . . . . . . Repair Stations 9 | . . . . 9 . Recycling Units 1 | . . . 1 . . Scanalyzers 2 | . . . . 2 . Garrison Access 3 | . . . . 3 . Terminal Hacks 15 | . 8 . 2 4 1 Record 2 | . 2 . . . . Robot Analysis 6 | . 3 . . 3 . Branch Access Points 1 | . . . 1 . . Terminal Index 3 | . 1 . 1 1 . Transport Status 1 | . 1 . . . . Investigation Status 1 | . 1 . . . . Patrol Navigation 1 | . . . . . 1 Fabricator Hacks . | . . . . . . Repair Station Hacks 8 | . . . . 8 . Scan Component 4 | . . . . 4 . Repair 4 | . . . . 4 . Recycling Unit Hacks . | . . . . . . Scanalyzer 2 | . . . . 2 . Insert Component 1 | . . . . 1 . Analyze 1 | . . . . 1 . Garrison Access Hacks 2 | . . . . 2 . Unlock Access 1 | . . . . 1 . Coupler Status 1 | . . . . 1 . Unauthorized Hacks 16 | . 7 . 3 6 . Terminals 15 | . 7 . 2 6 . Track 2 | . 2 . . . . Botnet 13 | . 5 . 2 6 . Fabricators . | . . . . . . Repair Stations . | . . . . . . Recycling Units 1 | . . . 1 . . Tunnel 1 | . . . 1 . . Scanalyzers . | . . . . . . Garrison Access . | . . . . . . Data Cores Recovered . | . . . . . . Used . | . . . . . . Hacking Detections 21 | . 6 . 3 10 2 Full Trace Events 2 | . 1 . . 1 . Feedback Events . | . . . . . . Feedback Blocked . | . . . . . . Robot Schematics Acquired . | . . . . . . Robots Built . | . . . . . . Authchips . | . . . . . . Time . | . . . . . . Total Robot Build Rating . | . . . . . . Part Schematics Acquired 1 | . . . . 1 . Parts Built . | . . . . . . Authchips . | . . . . . . Time . | . . . . . . Total Part Build Rating . | . . . . . . Parts Repaired 4 | . . . . 4 . Time 146 | . . . . 146 . Parts Recycled . | . . . . . . Recycled Matter . | . . . . . . Retrieved Matter . | . . . . . . Retrieved Components . | . . . . . . Parts Scanalyzed 1 | . . . . 1 . Part Schematics Acquired 1 | . . . . 1 . Parts Damaged . | . . . . . . Bothacking | -11 -10 -10 -9 -8 -8 ------------ Run | Yrd Mat Min Mat Mat Gar Used RIF Installer . | . . . . . . Robots Hacked . | . . . . . . Non-combat . | . . . . . . Combat . | . . . . . . Robot Hacks Applied . | . . . . . . Relay Couplers Released 5 | . . . . . 5 Machine Destruction 5 | . . . . . 5 Fabnet Peak Effective % . | . . . . . . Robots Rewired . | . . . . . . Allies Hacked . | . . . . . . Hacks Repelled . | . . . . . . Allies | -11 -10 -10 -9 -8 -8 -------- Run | Yrd Mat Min Mat Mat Gar Total Allies 3 | . . 3 . . . Largest Group 3 | . . 3 3 1 . Highest-Rated Group 40 | . . 40 40 16 . Highest-Rated Ally 16 | . . 16 16 16 . Total Orders . | . . . . . . Ally Attacks 68 | . . . 65 3 . Total Damage 694 | . . . 649 45 . Kills 9 | . . . 9 . . Allies Corrupted . | . . . . . . Allies Melted . | . . . . . . Intel | -11 -10 -10 -9 -8 -8 ------- Run | Yrd Mat Min Mat Mat Gar Robot Analysis Total 6 | . 3 . . 3 . Derelict Logs Recovered . | . . . . . . Drone Launches . | . . . . . . Drone Recoveries . | . . . . . . Exploration | -11 -10 -10 -9 -8 -8 ------------- Run | Yrd Mat Min Mat Mat Gar Turns Passed 6192 | 12 1884 31 506 3165 594 Spaces Moved 3573 | 11 1076 24 346 1844 272 Core . | . . . . . . Treads . | . . . . . . Legs 911 | 11 594 . . 306 . Wheels 2662 | . 482 24 346 1538 272 Hover . | . . . . . . Flight . | . . . . . . Fastest Speed 105 | 120 105 115 115 105 105 Average Speed 133 | 120 151 115 117 128 113 Slowest Speed 260 | 120 260 115 120 260 165 Overloaded Moves . | . . . . . . Propulsion Burnouts . | . . . . . . Robots Hopped . | . . . . . . Cave-ins Triggered 2 | . . . . . 2 Exploration Rate (%) 45 | 2 97 11 42 97 25 Regions Visited 5 Branch Regions 1 Pre-discovered Areas 1 | . . . 1 . . Known Exits Taken 1 | . . . . 1 . Unknown Exits Taken 4 | 1 1 1 1 . . Scrap Searched . | . . . . . . Spaces Dug 61 | . 2 . . 12 47 Terrain Destroyed 144 | . 71 . . 26 47 Melee 52 | . 2 . . 3 47 Projectile 23 | . . . . 23 . AOE 69 | . 69 . . . . Terrain Rammed . | . . . . . . Walls Destroyed . | . . . . . . Machines Disabled . | . . . . . . Actions | -11 -10 -10 -9 -8 -8 --------- Run | Yrd Mat Min Mat Mat Gar Total 4559 | 10 1274 27 424 2411 413 Wait 391 | . 72 4 15 277 23 Move 3569 | 10 1075 23 345 1844 272 Hop . | . . . . . . Pick Up 79 | . 34 . 10 35 . Fast Attach 21 | . 3 . 2 15 1 Attach 18 | . 7 . . 10 1 Detach 2 | . 2 . . . . Swap 33 | . 11 . 8 14 . Drop 81 | . 26 . 15 40 . Fire 179 | . 28 . 29 122 . Melee 154 | . 16 . . 54 84 Ram . | . . . . . . Kick . | . . . . . . Crush . | . . . . . . Escape Stasis 32 | . . . . . 32 Rewire . | . . . . . . Trap . | . . . . . . Miscellaneous . | . . . . . . Route ------- -11/Scrapyard -10/Materials (discovered 6 exits: *Mat x3 / [*Min x2] / [*Sub]) -10/Mines -9/Materials (discovered 3 exits: *Mat / *Min / Sto) -8/Materials (discovered 4 exits: [*Fac x3] / Gar) -8/Garrison History --------- Turn | Location | Event 1 | -11/Scrapyard | Discovered new exit (range 3) 13 | -11/Scrapyard | Entered Materials 113 | -10/Materials | Discovered new exit (range 11) 251 | -10/Materials | Discovered new exit (range 15) 317 | -10/Materials | Build established: Mutant 1499 | -10/Materials | Discovered new exit (range 14) 1614 | -10/Materials | Discovered new exit (range 16) 1744 | -10/Materials | Discovered new exit (range 9) 1810 | -10/Materials | Discovered new exit (range 15) 1897 | -10/Materials | Entered Mines 1897 | -10/Mines | Discovered new exit (range 6) 1914 | -10/Mines | Assisted by bots powering up and referring to "LRC-V3" 1928 | -10/Mines | Entered Materials 1928 | -9/Materials | Accompanied by 3 allies 1928 | -9/Materials | Evolved 2 slots: Utility x2 2046 | -9/Materials | Discovered new exit (range 16) 2110 | -9/Materials | Identified exit to Mines 2110 | -9/Materials | Identified exit to Storage 2399 | -9/Materials | Discovered new exit (range 16) 2434 | -9/Materials | Entered another Materials area 2434 | -8/Materials | Accompanied by 1 ally 2434 | -8/Materials | Evolved 2 slots: Propulsion x1, Utility x1 2673 | -8/Materials | Discovered new exit (range 13) 2714 | -8/Materials | Repaired Maul 3017 | -8/Materials | Build established: Assassin 3044 | -8/Materials | Core integrity fell below 50% 3050 | -8/Materials | Lost 4 parts (1p2n1u) 3325 | -8/Materials | Build established: Mutant 3530 | -8/Materials | Discovered new exit (range 15) 4323 | -8/Materials | Garrison activated, responded to threat 4665 | -8/Materials | Discovered new exit (range 10) 5184 | -8/Materials | Repaired Hvy. Particle Cannon 5516 | -8/Materials | Repaired Reflective Plating 5556 | -8/Materials | Repaired Imp. Sensor Array 5599 | -8/Materials | Identified exit to Garrison 5599 | -8/Materials | Entered Garrison 5833 | -8/Garrison | Triggered checkpoint 5843 | -8/Garrison | Garrison Relay disabled 6021 | -8/Garrison | Triggered checkpoint 6060 | -8/Garrison | Spotted B-75 Beast 6060 | -8/Garrison | Spotted B-75 Beast 6095 | -8/Garrison | Crushed by falling debris 6095 | -8/Garrison | Core integrity fell below 20% 6126 | -8/Garrison | Lost 4 parts (2n2u) 6194 | -8/Garrison | Crushed by falling debris 6194 | -8/Garrison | Smashed by cave-in Last Messages --------------- 06095_ Arm. Wheel destroyed. 06095_ System corrupted by crushing effect (+1). 06095_ Imp. Signal Interpreter destroyed. 06095_ System corrupted by crushing effect (+2). 06103_ The unstable cave ceiling collapses. 06118_ System corrupted: Component data lost. 06128_ S-10 Pest destroyed. 06164_ System corrupted: Energy discharge (-82). 06174_ Deuterium Engine severed. 06174_ C-17 Slicer suffers critical hit (Smash). 06174_ Destroyed Reaction Control System. 06174_ Destroyed Surge Thruster. 06174_ C-17 Slicer system corrupted by crushing effect. 06174_ C-17 Slicer knocked back. 06175_ C-17 Slicer system terminally corrupted. 06180_ Acquired Deuterium Engine. 06181_ V0PKQ8WGW>D =P|WGID 06194_ The unstable cave ceiling collapses. 06194_ Crushed by falling debris. Map ----- +----------------------------------------------------+ | ????????????????????????????????????# ??????????? | | ????????????????????????????????????# ??????????? | | ????????????????????????????????????# #?????????? | | ????????????????????????????????????# #?????????? | | ????????????????????????????????????# #?????????? | | ????????????????????????????????????# #?????????? | | ????????????????????????????????????# #?????????? | | ????????????????????????????????????# #?????##### | | ??????????????????????? ####### #####!!! [[ | | ??????????????????????? % | | ??????????????????????? [ / | | ??????????????????????????? #########%#### | | ??????????????????????????? ##????#####????????? | | ??????????????????????????? ???## ##?????????? | | ??????????????????????????? ???#####??????????? | | ??????????????????????????? ??### #???????????? | | ??????????????????????????? ?## # #???????????? | | ??????????????????????????# ###### #####??###?## | | ????????????????????# ## #####"#"##"####"###" | | ????????????????? | | ????????????????? ########## | | ????????????????? ####### #????????# | | ?????????????????? ##""""## #???# ## #????????## | | ??????????????????????????#% #???# ## #?????????# | | ???????????????????????#### #???# ## ########### | | ???????????????????????# @; #?### " " | | ???????????????????????#### %###"# ## ########### | | ?????????????????????????#" # ## "#????????# | | ?????????????????????????## ###"####% ##????????# | | ?????????????????????????## ######## #?????????? | | ?????????????????????????#" ##########" | | ?????????????????????????## | | ??????????????????????????##"######## ########### | | ??????????????????????????## ##?????# #?????????? | | ??????????????????????????#" "#?????# #?????????? | | ??????????????????????????## ##?????# #?????????? | | ????????????????????????##?# #??????# #?????????? | | ????????????????????????#"## ###????# ####??###?? | | ?????????????????????????#! !###### ##"####"### | | ????????????????????????##! !" " | | ????????????????????????#"! !###### | | ????????????????????????##!!%!!#????###"##"###"## | | ?????????????????????????###"###??????######?#### | | ???????????????????????????###??????????????????## | | ?????????????????????????????????????????????????# | | ?????????????????????????????????????????????????? | | ?????????????????????????????????????????????????? | | ?????????????????????????????????????????????????? | | ?????????????????????????????????????????????????? | | ?????????????????????????????????????????????????? | +----------------------------------------------------+ Best States ------------- Heat Dissipation 53 Energy Generation 14 Energy Capacity 275 Matter Stores 300 Matter Capacity 300 Sight Range 16 Robot Scan Range 15 Terrain Scan Range 14 Terrain Scan Density 85 Armor Coverage 300 Resistance: KI 20 Resistance: TH 30 Resistance: EX 20 Resistance: EM 20 Resistance: I 20 Resistance: S 20 Resistance: P 20 Evasion (%) 55 Offensive Hacking 10 Item Schematics ----------------- Adv. Weight Redist. System | -8/Materials | Scanalyzed Robot Schematics ------------------ None Fabricated ------------ Nothing Alien Tech Used ----------------- None Achievements -------------- None Challenges ------------ None Game ------ Seed ActiveEtherialTriangulator Manual? 0 Play Time 00:48:05 Cumulative 111.4 hours Start 2024.08.01 @ 15:03:29 End 2024.08.01 @ 15:52:09 Sessions 3 Manual Loads 0 Difficulty Adventurer Special Mode None Game No. 155 Rogue 0 Adventurer 155 Explorer 0 Win Type - Total 0 Types 0/0/0/0/0/0/0/0/0 Lore% 47 Gallery% 52 Achievement% 37 Wizard Run 0 Options --------- Layout 2 ASCII 0 Keyboard 0 Movement Mouse Keybinds 0 Fullscreen 2 Font 48/Terminus Map View 50x44 Zoom Use 0% Tactical HUD 1 Map Filters NONE Filters NONE Steam 1 RUN: 5535f4c9-18a4-4405-b3d5-fecc2d6a7b10